bitfinex-derivatives/quotes_SOLF0:USTF0_20251211
["timestamp","ask_amount","ask_price","bid_price","bid_amount"]
[1765428687340,3.17,131.03,130.99,3.22523623]
[1765428687538,3.17,131.03,130.99,0.05523623]
[1765428687757,5.67060799,131.05,130.99,3.22523623]
[1765428687950,5.67060799,131.05,131.02,3.17]
[1765428687951,4.34213554,131.05,131.02,3.17]
[1765428688252,4.34213554,131.05,131.04,8.66329804]
[1765428689545,4.34213554,131.05,131.04,3.17]
[1765428689861,3.17,131.2,131.1,106.765]
[1765428690157,3.17,131.2,131.1,106.7664]
[1765428690358,3.17,131.2,131.12,5.49329804]
[1765428690542,3.17,131.2,131.14,0.05564914]
[1765428691355,3.17,131.23,131.15,5.49329804]
[1765428691549,3.17,131.23,131.18,0.05707904]
[1765428692457,3.17,131.27,131.19,106.6886]
[1765428692647,3.17,131.26,131.22,0.05237643]
[1765428692849,3.17,131.26,131.17,64.9]
[1765428693048,3.17,131.24,131.17,64.9]
[1765428693353,3.17,131.24,131.15,64.9]
[1765428693548,3.17,131.23,131.14,5.49329804]
[1765428693753,3.17,131.23,131.14,112.22439804]
[1765428693954,0.05107301,131.2,131.17,0.0520108]
[1765428694747,3.28107301,131.2,131.17,0.0520108]
[1765428698051,3.28107301,131.2,131.14,106.7338]
[1765428698052,3.28107301,131.2,131.09,113.636]
[1765428698253,3.23,131.17,131.08,171.6196]
[1765428698651,3.23,131.16,131.08,64.84]
[1765428698847,106.7371,131.14,131.08,64.84]
[1765428699163,3.23,131.11,131.03,171.6613]
[1765428699553,3.23,131.11,131.03,64.84]
[1765428699757,3.23,131.11,131.03,171.6632]
[1765428700163,0.0580724,131.08,131.06,0.05745121]
[1765428700350,3.23,131.15,131.06,106.7987]
[1765428700552,3.23,131.15,131.07,106.7911]
[1765428701061,3.23,131.15,131.07,113.6563]
[1765428701265,3.23,131.11,131.1,0.05356729]
[1765428703259,0.04829512,131.12,131.03,171.6632]
[1765428703457,3.23,131.13,131.03,171.6632]
[1765428703657,3.23,131.13,131.04,106.8153]
[1765428704355,0.05594321,131.1,131.07,0.05580664]
[1765428705866,3.28594321,131.1,131.07,0.05580664]
[1765428706060,0.05594321,131.1,131.07,0.05580664]
[1765428706966,3.28594321,131.1,131.07,0.05580664]
[1765428707359,0.05594321,131.1,131.07,0.05580664]
[1765428707866,3.28594321,131.1,131.07,0.05580664]
[1765428708071,0.05594321,131.1,131.07,0.05580664]
[1765428708554,3.28594321,131.1,131.07,0.05580664]
[1765428709872,3.23,131.16,131.08,73.38077249]
[1765428710059,3.23,131.21,131.12,106.749]
[1765428710261,3.23,131.21,131.13,171.5823]
[1765428710465,106.6596,131.24,131.13,171.5823]
[1765428710466,118.07282512,131.24,131.13,171.5823]
[1765428710775,0.05245829,131.2,131.17,0.05387538]
[1765428711172,0.05245829,131.2,131.17,8.59464787]
[1765428712161,3.28245829,131.2,131.17,0.05387538]
[1765428712970,0.05245829,131.2,131.17,0.05387538]
[1765428713661,3.28245829,131.2,131.17,0.05387538]
[1765428714464,3.23,131.19,131.13,64.84]
[1765428715465,3.23,131.16,131.15,0.05524736]
[1765428715675,3.23,131.16,131.09,178.4615]
[1765428716369,3.23,131.16,131.1,6.8634]
[1765428716573,3.28804741,131.14,131.12,0.04842084]
[1765428716965,0.05804741,131.14,131.12,0.04842084]
[1765428717175,3.28804741,131.14,131.12,0.04842084]
[1765428718566,0.05804741,131.14,131.12,0.04842084]
[1765428718767,3.23,131.19,131.12,0.04842084]
[1765428719573,3.23,131.18,131.12,0.04842084]
[1765428719771,3.23,131.16,131.12,0.04842084]
[1765428719962,4.55672512,131.24,131.15,8.54077249]
[1765428720169,3.23,131.23,131.16,64.82]
[1765428721080,3.27984144,131.21,131.18,0.04855364]
[1765428721381,0.04984144,131.21,131.18,0.04855364]
[1765428722077,0.04984144,131.21,131.18,6.90765364]
[1765428722268,180.3284,131.28,131.18,6.90765364]
[1765428722269,3.23,131.32,131.23,106.6573]
[1765428722469,3.23,131.31,131.24,8.54077249]
[1765428722975,3.23,131.3,131.24,8.54077249]
[1765428723179,3.23,131.3,131.21,115.21927249]
[1765428723380,3.27671323,131.27,131.24,0.04892402]
[1765428724786,3.27671323,131.27,131.19,71.6588]
[1765428724977,3.23,131.27,131.19,71.6588]
[1765428725276,6.8557,131.26,131.19,64.8]
[1765428725476,3.33,131.25,131.19,64.8]
[1765428725680,3.33,131.22,131.21,0.05719231]
[1765428725884,3.33,131.22,131.15,73.34077249]
[1765428726085,3.33,131.21,131.15,64.8]
[1765428726384,3.33,131.21,131.12,8.54077249]
[1765428726385,3.33,131.2,131.12,8.54077249]
[1765428726576,3.33,131.19,131.12,8.54077249]
[1765428726775,3.33,131.16,131.14,0.05433908]
[1765428727987,3.33,131.16,131.1,64.8]
[1765428728285,5.6993766,131.15,131.1,171.5671]
[1765428728490,3.33,131.18,131.1,171.5671]
[1765428728678,5.70973101,131.17,131.1,171.5671]
[1765428728877,0.05451111,131.15,131.12,0.05100697]
[1765428729285,0.05451111,131.15,131.12,8.59177946]
[1765428729981,3.38451111,131.15,131.12,8.59177946]
[1765428730188,5.72802514,131.14,131.12,8.59177946]
[1765428730488,0.00451111,131.15,131.12,8.59177946]
[1765428730784,3.33,131.13,131.12,0.05100697]
[1765428730978,9.05822839,131.13,131.12,0.05100697]
[1765428731183,0.00451111,131.15,131.12,0.05100697]
[1765428731988,0.00451111,131.15,131.04,106.8131]
[1765428731989,3.34,131.1,131.0,106.8457]
[1765428732289,3.34,131.09,131.0,180.18647249]
[1765428732681,3.34,131.08,131.0,64.8]
[1765428732987,3.39460083,131.05,131.03,0.05609002]
[1765428734083,3.34,131.04,130.96,171.6803]
[1765428734682,3.34,131.04,130.96,71.6706]
[1765428734874,3.39271075,131.01,130.99,0.04884643]
[1765428735078,3.39271075,131.01,130.92,171.7119]
[1765428735283,171.6186,131.04,130.92,171.7119]
[1765428735588,10.2069,131.04,130.95,106.8899]
[1765428736086,0.05041292,131.01,130.98,0.05099626]
[1765428736475,3.39041292,131.01,130.98,0.05099626]
[1765428737084,110.1044,131.11,131.01,106.8419]
[1765428737282,3.34,131.11,131.02,171.6545]
[1765428737475,3.34,131.11,131.04,6.8666]
[1765428737681,110.0757,131.15,131.05,106.8086]
[1765428737882,110.0757,131.15,131.06,8.54077249]
[1765428738081,0.05412776,131.11,131.09,0.05281293]
[1765428738789,0.05412776,131.11,131.09,8.59358542]
[1765428739382,6.8607,131.16,131.09,8.59358542]
[1765428739582,3.34,131.18,131.12,8.54077249]
[1765428740584,0.05073732,131.16,131.14,0.05581893]
[1765428741892,0.05073732,131.16,131.14,106.79151893]
[1765428742294,10.1975,131.22,131.14,108.31151893]
[1765428742486,10.1975,131.22,131.14,106.7357]
[1765428742887,10.1975,131.22,131.14,113.5969]
[1765428743095,10.1975,131.22,131.14,6.8612]
[1765428743394,0.05397338,131.19,131.17,0.05806881]
[1765428743992,3.39397338,131.19,131.13,64.82]
[1765428744194,3.39397338,131.19,131.13,171.5632]
[1765428744498,3.39397338,131.19,131.13,64.82]
[1765428744788,3.39397338,131.19,131.08,106.7829]
[1765428744789,3.34,131.18,131.08,106.7829]
[1765428744992,3.3934279,131.14,131.12,0.0520279]
[1765428745792,3.3934279,131.14,131.05,106.8048]
[1765428745793,106.7563,131.12,131.01,106.8366]
[1765428745994,106.7563,131.12,131.0,180.20627249]
[1765428745995,3.34,131.1,131.0,180.20627249]
[1765428746194,3.34,131.09,131.0,180.20627249]
[1765428746496,3.34,131.08,131.01,106.8426]
[1765428746683,0.05161547,131.06,131.03,0.05773557]
[1765428748296,3.39161547,131.06,131.03,0.05773557]
[1765428751784,3.34,131.04,131.0,64.82]
[1765428752591,3.34,131.04,130.98,6.8697]
[1765428752909,0.05491415,131.02,131.0,0.05063653]
[1765428759201,3.28,131.07,131.0,64.89063653]
[1765428759596,3.28,131.07,131.0,171.74083653]
[1765428760296,0.0517791,131.05,131.0,171.74083653]
[1765428760903,0.0517791,131.05,131.01,6.868]
[1765428762900,0.0517791,131.05,131.02,6.8677]
[1765428765003,0.0517791,131.05,131.03,6.867]
[1765428765205,0.0517791,131.05,131.03,6.920308]
[1765428765404,3.3317791,131.05,131.03,0.053308]
[1765428767204,10.1982791,131.05,131.03,0.053308]
[1765428767410,3.28,131.04,130.97,6.8704]
[1765428767905,6.8678,131.03,130.97,6.8704]
[1765428768108,3.28,131.02,130.96,64.86]
[1765428768313,0.05335574,131.0,130.98,0.05054676]
[1765428768912,3.33335574,131.0,130.98,0.05054676]
[1765428769204,0.05335574,131.0,130.98,0.05054676]
[1765428772007,3.33335574,131.0,130.98,0.05054676]
[1765428776709,10.20265574,131.0,130.98,0.05054676]
[1765428776912,3.28,130.99,130.93,64.86]
[1765428777908,3.28,130.99,130.95,0.04935509]
[1765428777909,0.05830333,130.97,130.95,0.04935509]
[1765428778804,3.33830333,130.97,130.95,0.04935509]
[1765428782808,3.33830333,130.97,130.93,64.86]
[1765428782809,3.28,130.96,130.93,64.86]
[1765428783114,3.28,130.96,130.9,6.874]
[1765428783420,3.28,130.96,130.89,70.34548204]
[1765428783610,3.28,130.93,130.85,106.968]
[1765428783811,3.28,130.93,130.85,177.31348204]
[1765428784011,0.05639337,130.9,130.88,0.05675871]
[1765428784212,3.49639337,130.9,130.88,0.05675871]
[1765428785614,0.05639337,130.9,130.88,0.05675871]
[1765428786912,0.05639337,130.9,130.88,6.93175871]
[1765428787114,3.44,130.96,130.9,106.9324]
[1765428787311,3.44,130.96,130.9,171.8324]
[1765428788019,0.05140911,130.94,130.92,0.05793839]
[1765428788718,3.49140911,130.94,130.92,0.05793839]
[1765428801231,0.05140911,130.94,130.92,0.05793839]
[1765428801529,3.32140911,130.94,130.92,0.05793839]
[1765428804025,0.05140911,130.94,130.92,0.05793839]
[1765428804220,3.27,131.02,130.93,106.9066]
[1765428804420,3.27,131.02,130.94,112.36268204]
[1765428804634,10.1382,131.02,130.96,6.8709]
[1765428805232,3.32792471,131.0,130.98,0.05576972]
[1765428811829,3.32792471,131.0,130.92,6.8729]
[1765428812141,3.27,130.96,130.87,106.9513]
[1765428812344,3.27,130.96,130.88,171.8436]
[1765428812633,3.27,130.96,130.9,6.8741]
[1765428812838,3.27,130.93,130.92,0.04973645]
[1765428815129,3.27,130.93,130.88,71.7749]
[1765428815328,3.27,130.93,130.88,64.9]
[1765428815532,3.27,130.93,130.86,6.876]
[1765428816138,3.37,130.9,130.88,0.04886591]
[1765428819445,3.42506252,130.91,130.88,0.04886591]
[1765428824848,3.37,130.97,130.91,106.9238]
[1765428825846,3.37,130.97,130.93,0.05555874]
[1765428826048,0.05050866,130.95,130.93,6.92805874]
[1765428826552,3.37,130.94,130.93,0.05555874]
[1765428829749,3.37,130.94,130.89,64.92]
[1765428830754,3.37,130.94,130.9,0.05043996]
[1765428831053,3.37,130.93,130.9,0.05043996]
[1765428841446,10.2428,130.93,130.9,0.05043996]
[1765428841658,3.37,130.92,130.9,0.05043996]
[1765428841956,3.4180525,130.92,130.9,0.05043996]
[1765428844355,0.0480525,130.92,130.9,0.05043996]
[1765428845049,3.1980525,130.92,130.9,0.05043996]
[1765428846761,3.15,130.97,130.91,3.59280636]
[1765428847155,3.15,130.97,130.93,10.46530636]
[1765428847757,0.05469189,130.96,130.94,0.05422185]
[1765428847957,3.20469189,130.96,130.94,0.05422185]
[1765428848153,0.05469189,130.96,130.94,0.05422185]
[1765428849460,3.15,131.03,130.97,106.8683]
[1765428849659,3.15,131.03,131.01,3.59280636]
[1765428850054,3.15,131.07,131.01,3.59280636]
[1765428850266,3.15,131.07,131.04,3.59280636]
[1765428850455,3.15,131.07,131.01,106.8422]
[1765428850456,3.15,131.07,131.01,110.43500636]
[1765428850657,3.20739314,131.05,131.03,0.05579073]
[1765428850965,3.20457627,131.05,131.03,0.05380582]
[1765428855864,0.00450115,131.05,131.04,6.8668]
[1765428856068,3.19,131.13,131.09,106.7758]
[1765428856269,3.19,131.13,131.07,106.7928]
[1765428856967,0.05505296,131.11,131.09,0.05733712]
[1765428857361,3.24505296,131.11,131.09,0.05733712]
[1765428859461,3.19,131.1,131.0,106.8455]
[1765428860469,0.05567076,131.06,131.04,0.05516893]
[1765428860670,0.05678931,131.06,131.04,0.05670716]
[1765428865074,3.24678931,131.06,131.04,0.05670716]
[1765428867370,3.24678931,131.06,130.99,6.8692]
[1765428867571,3.19,131.05,130.99,6.8692]
[1765428867976,3.19,131.05,130.97,6.8702]
[1765428868365,3.19,131.05,131.0,0.04856263]
[1765428868571,3.19,131.01,131.0,0.04856263]
[1765428868970,0.05634298,131.02,131.0,0.04856263]
[1765428869166,3.24634298,131.02,131.0,0.04856263]
[1765428869571,0.05634298,131.02,131.0,0.04856263]
[1765428871267,0.05634298,131.02,131.0,6.91716263]
[1765428872475,3.19,131.09,131.03,6.8673]
[1765428873584,3.19,131.06,131.05,0.05247776]
[1765428874384,3.39259781,131.07,131.05,0.05247776]
[1765428874874,0.05259781,131.07,131.05,6.91867776]
[1765428875077,0.05259781,131.07,131.05,113.72767776]
[1765428875479,0.05259781,131.07,131.05,6.91867776]
[1765428878275,3.39259781,131.07,131.05,0.05247776]
[1765428883794,0.05259781,131.07,131.05,6.91847776]
[1765428883994,3.39259781,131.07,131.05,6.91847776]
[1765428885181,3.34,131.17,131.08,106.7789]
[1765428885387,3.34,131.16,131.11,106.7535]
[1765428885793,3.34,131.16,131.1,106.7685]
[1765428886295,5.46155518,131.19,131.12,0.05038211]
[1765428886296,3.39506082,131.14,131.12,0.05038211]
[1765428886492,3.39354323,131.14,131.12,0.05038211]
[1765428887791,0.05354323,131.14,131.13,6.8621]
[1765428887991,3.34,131.19,131.15,106.7278]
[1765428888193,3.34,131.19,131.16,106.7202]
[1765428888490,3.34,131.23,131.17,113.5717]
[1765428888682,3.34,131.23,131.17,106.712]
[1765428888883,3.38982871,131.21,131.19,0.05293885]
[1765428889283,0.04982871,131.21,131.19,0.05293885]
[1765428889891,3.38982871,131.21,131.19,0.05293885]
[1765428892694,0.04982871,131.21,131.19,0.05293885]
[1765428893102,3.38982871,131.21,131.19,0.05293885]
[1765428895506,3.38982871,131.21,131.14,113.5952]
[1765428895706,3.38982871,131.21,131.15,6.8607]
[1765428896308,3.34,131.2,131.15,6.8607]
[1765428896504,3.34,131.2,131.16,0.05620407]
[1765428897704,3.34,131.19,131.16,0.05620407]
[1765428899210,3.34,131.18,131.16,0.05620407]
[1765428899413,3.39760321,131.18,131.16,0.05620407]
[1765428901199,3.39760321,131.18,131.06,106.7964]
[1765428901399,3.34,131.18,131.08,106.7823]
[1765428901601,3.34,131.15,131.08,106.7823]
[1765428901802,3.34,131.15,131.06,106.7964]
[1765428902310,3.34,131.15,131.05,106.8051]
[1765428902311,3.34,131.11,131.09,0.04959712]
[1765428904711,0.05424323,131.12,131.1,6.8632]
[1765428905212,3.49424323,131.12,131.1,6.8632]
[1765428905604,3.49424323,131.12,131.09,0.04959712]
[1765428905800,8.95579841,131.12,131.09,0.04959712]
[1765428906011,3.44,131.11,131.09,0.04959712]
[1765428906200,3.44,131.11,131.04,171.6136]
[1765428906201,3.44,131.11,131.04,6.8665]
[1765428906602,3.44,131.09,131.04,6.8665]
[1765428906798,3.44,131.09,131.02,106.8283]
[1765428907302,3.4935775,131.07,131.04,0.05544642]
[1765428907501,5.46155518,131.2,131.1,106.7692]
[1765428907807,3.44,131.19,131.11,106.7611]
[1765428908512,3.49637357,131.16,131.14,0.05791645]
[1765428908807,3.49530219,131.16,131.14,0.05575696]
[1765428916517,3.33,131.21,131.14,0.05575696]
[1765428916712,298.0,131.34,131.14,0.05575696]
[1765428916713,3.33,131.24,131.18,106.7042]
[1765428917317,3.33,131.24,131.19,6.8585]
[1765428917718,3.37965074,131.23,131.2,0.05668538]
[1765428917920,0.04965074,131.23,131.2,6.91478538]
[1765428918424,3.37965074,131.23,131.2,6.91478538]
[1765428918919,0.04965074,131.23,131.21,6.8576]
[1765428922217,0.04965074,131.23,131.21,115.0568]
[1765428922424,0.04965074,131.23,131.21,113.5368]
[1765428923223,0.04965074,131.23,131.21,6.8576]
[1765428924922,0.04965074,131.23,131.21,113.5373]
[1765428926328,0.04965074,131.23,131.21,6.8576]
[1765428926823,0.04965074,131.23,131.21,113.537]
[1765428930226,68.11,131.3,131.23,106.6601]
[1765428930536,3.33,131.29,131.23,106.6601]
[1765428931232,3.38438546,131.27,131.25,0.05494948]
[1765428932222,3.38438546,131.27,131.25,6.91034948]
[1765428933138,3.38438546,131.27,131.25,0.05494948]
[1765428936832,3.38438546,131.27,131.17,106.7065]
[1765428937033,3.33,131.27,131.17,106.7065]
[1765428937943,3.48196924,131.24,131.22,0.05126102]
[1765428939234,6.8519,131.33,131.26,6.8553]
[1765428939436,71.6119,131.33,131.26,6.8553]
[1765428939631,71.6119,131.33,131.24,106.652]
[1765428939632,71.6119,131.33,131.24,107.852]
[1765428940348,0.05366412,131.3,131.27,0.05076395]
[1765428941048,0.05366412,131.3,131.27,6.90546395]
[1765428941345,68.19,131.29,131.27,0.05076395]
[1765428943045,68.19,131.29,131.28,6.8541]
[1765428943549,3.43,131.28,131.27,0.05076395]
[1765428946044,0.05366412,131.3,131.27,1.25076395]
[1765428946253,106.5304,131.4,131.29,109.8788]
[1765428946254,64.76,131.36,131.29,109.8788]
[1765428946643,64.76,131.35,131.32,6.852]
[1765428947140,107.86235991,131.39,131.32,0.05006431]
[1765428947345,0.05762061,131.35,131.32,6.431e-05]
[1765428948241,3.43,131.34,131.32,6.431e-05]
[1765428949436,6.90842061,131.35,131.32,6.431e-05]
[1765428949437,68.17,131.33,131.32,6.431e-05]
[1765428950448,3.48762061,131.35,131.32,6.431e-05]
[1765428950751,3.43,131.33,131.32,6.431e-05]
[1765428951254,68.17,131.33,131.32,6.431e-05]
[1765428952448,3.43,131.33,131.32,6.431e-05]
[1765428952653,68.17,131.33,131.32,6.431e-05]
[1765428952953,3.43,131.33,131.32,6.431e-05]
[1765428953244,68.17,131.33,131.32,6.431e-05]
[1765428953852,3.43,131.32,131.28,6.8541]
[1765428954840,0.04921591,131.31,131.29,0.05053793]
[1765428955045,3.47921591,131.31,131.29,0.05053793]
[1765428957752,68.17,131.3,131.29,0.05053793]
[1765428957946,68.17,131.3,131.24,6.856]
[1765428957947,3.43,131.29,131.24,6.856]
[1765428958144,3.43,131.29,131.24,10.126]
[1765428958350,3.43,131.29,131.24,3.27]
[1765428958854,3.43,131.29,131.21,109.9455]
[1765428959159,64.74,131.3,131.21,109.9455]
[1765428959160,3.48197634,131.26,131.24,0.05750398]
[1765428959458,64.74,131.25,131.24,0.05750398]
[1765428960355,68.17,131.25,131.24,0.05750398]
[1765428960861,3.43,131.24,131.18,109.9689]
[1765428961359,68.17,131.23,131.19,3.27]
[1765428961765,3.48437668,131.22,131.2,0.05187849]
[1765428962449,64.74,131.21,131.2,0.05187849]
[1765428962654,68.17,131.21,131.2,0.05187849]
[1765428970868,3.43,131.21,131.2,0.05187849]
[1765428971069,68.19,131.21,131.2,0.05187849]
[1765428971964,3.43,131.21,131.2,0.05187849]
[1765428972269,68.19,131.21,131.2,0.05187849]
[1765428972763,3.11,131.2,131.15,6.8609]
[1765428972963,3.11,131.2,131.13,3.35]
[1765428973468,3.11,131.2,131.13,10.212]
[1765428973868,3.11,131.17,131.15,0.05859511]
[1765428974068,64.78,131.16,131.15,0.05859511]
[1765428975167,67.89,131.16,131.15,0.05859511]
[1765428975673,67.89,131.16,131.11,6.863]
[1765428975674,3.11,131.15,131.11,3.35]
[1765428975873,3.11,131.15,131.08,3.35]
[1765428976470,0.05003472,131.13,131.1,3.40237384]
[1765428977370,3.16003472,131.13,131.1,0.05237384]
[1765428977672,3.16003472,131.13,131.1,3.40237384]
[1765428978267,64.78,131.12,131.1,3.40237384]
[1765428979166,3.11,131.12,131.1,0.05237384]
[1765428979372,67.89,131.12,131.1,0.05237384]
[1765428979573,3.11,131.11,131.1,0.05237384]
[1765428983678,0.05003472,131.13,131.11,3.35]
[1765428984879,0.05003472,131.13,131.12,3.35]
[1765428986581,3.11,131.19,131.14,3.35]
[1765428986877,3.11,131.18,131.14,3.35]
[1765428987575,0.05500859,131.17,131.15,0.05215939]
[1765428988782,3.16500859,131.17,131.15,0.05215939]
[1765428989082,3.16500859,131.17,131.15,6.91305939]
[1765428991589,0.05500859,131.17,131.16,3.35]
[1765428992274,3.11,131.22,131.18,3.35]
[1765428993178,71.6573,131.23,131.19,0.04945917]
[1765428993179,3.11,131.2,131.19,0.04945917]
[1765428994983,3.11,131.2,131.13,6.8618]
[1765428995494,3.11,131.2,131.13,10.0218]
[1765428996077,3.3947758,131.18,131.15,0.04936255]
[1765429000991,3.3947758,131.18,131.15,3.20936255]
[1765429001195,0.0547758,131.18,131.15,3.20936255]
[1765429002187,3.34,131.24,131.17,3.16]
[1765429003194,3.39407486,131.22,131.19,3.21799398]
[1765429003885,3.39407486,131.22,131.19,10.07689398]
[1765429005198,3.34,131.27,131.21,3.16]
[1765429005698,3.34,131.27,131.21,10.0175]
[1765429006190,3.39807127,131.25,131.23,0.05541308]
[1765429006785,3.34,131.24,131.23,0.05541308]
[1765429009198,3.39807127,131.25,131.23,0.05541308]
[1765429010402,5.68644304,131.25,131.23,0.05541308]
[1765429010600,3.34,131.24,131.23,0.05541308]
[1765429011102,3.39807127,131.25,131.23,0.05541308]
[1765429011900,3.39807127,131.25,131.23,6.91221308]
[1765429012394,3.39807127,131.25,131.23,0.05541308]
[1765429022112,3.34,131.24,131.23,0.05541308]
[1765429026500,0.05807127,131.25,131.23,3.33541308]
[1765429028012,0.05807127,131.25,131.23,10.19211308]
[1765429029508,3.28,131.27,131.23,10.19211308]
[1765429029509,5.56837177,131.3,131.24,109.9332]
[1765429029702,3.28,131.29,131.26,3.28]
[1765429030506,3.28,131.29,131.26,10.19311274]
[1765429030711,3.33423679,131.29,131.26,10.19311274]
[1765429031699,3.33423679,131.29,131.26,10.35311274]
[1765429031898,5.67837177,131.33,131.27,3.44]
[1765429032307,3.39,131.36,131.31,3.44]
[1765429032505,3.39,131.35,131.31,3.44]
[1765429032906,0.05131182,131.34,131.32,0.05201899]
[1765429033106,0.05131182,131.34,131.32,3.49201899]
[1765429036015,0.05131182,131.34,131.32,10.34391899]
[1765429036215,0.05131182,131.34,131.32,6.90391899]
[1765429036616,0.05131182,131.34,131.32,0.05201899]
[1765429037813,0.05131182,131.34,131.32,12.63229076]
[1765429038018,0.05131182,131.34,131.33,3.44]
[1765429038907,0.05131182,131.34,131.32,10.34391899]
[1765429039310,0.05131182,131.34,131.33,3.44]
[1765429040818,5.67837177,131.4,131.36,3.44]
[1765429041013,3.39,131.39,131.36,3.44]
[1765429041215,3.39,131.37,131.34,3.44]
[1765429041814,3.44469816,131.37,131.34,3.49409709]
[1765429042215,0.05469816,131.37,131.34,3.49409709]
[1765429042415,3.39,131.36,131.34,0.05409709]
[1765429042611,5.67837177,131.35,131.34,0.05409709]
[1765429043722,3.39,131.35,131.34,0.05409709]
[1765429043918,2.28837177,131.36,131.34,3.49409709]
[1765429044516,3.44469816,131.37,131.34,3.49409709]
[1765429044714,2.28837177,131.36,131.34,3.49409709]
[1765429045122,5.67837177,131.36,131.34,0.05409709]
[1765429045326,3.39,131.35,131.34,0.05409709]
[1765429046820,3.39,131.34,131.27,3.44]
[1765429047021,2.28837177,131.31,131.27,3.44]
[1765429047325,3.39,131.39,131.32,3.44]
[1765429047521,2.28837177,131.38,131.32,3.44]
[1765429047735,2.28837177,131.38,131.34,3.49635683]
[1765429047736,0.05112104,131.36,131.34,3.49635683]
[1765429049338,3.44112104,131.36,131.34,0.05635683]
[1765429050234,0.05112104,131.36,131.34,3.49635683]
[1765429050633,0.05112104,131.36,131.34,5.7847286]
[1765429052843,3.44112104,131.36,131.34,2.3447286]
[1765429053039,3.44112104,131.36,131.34,0.05635683]
[1765429057447,0.05112104,131.36,131.35,2.28837177]
[1765429057639,0.05112104,131.36,131.35,5.53837177]
[1765429058445,3.36,131.39,131.36,10.1]
[1765429058749,3.36,131.39,131.38,2.28837177]
[1765429059548,3.36,131.39,131.37,0.04864424]
[1765429059844,3.36,131.39,131.37,2.33701601]
[1765429060649,3.36,131.39,131.37,0.04864424]
[1765429061752,5.797e-05,131.41,131.39,3.25]
[1765429062048,3.36,131.48,131.41,3.25]
[1765429062238,3.36,131.48,131.42,3.56670143]
[1765429062439,3.36,131.48,131.41,3.25]
[1765429062743,3.36,131.45,131.43,0.05716204]
[1765429068653,3.36,131.48,131.45,3.25]
[1765429068856,3.36,131.48,131.43,106.55456204]
[1765429068857,3.36,131.48,131.43,109.80456204]
[1765429069057,3.36,131.48,131.45,6.8452]
[1765429069253,3.36,131.48,131.45,10.0952]
[1765429069750,3.36,131.5,131.46,10.0946]
[1765429069958,3.36,131.5,131.47,0.05860367]
[1765429078360,68.02,131.5,131.47,0.05860367]
[1765429078557,3.36,131.49,131.47,0.05860367]
[1765429081457,3.36,131.47,131.42,10.0966]
[1765429081661,3.36,131.45,131.39,3.25]
[1765429081857,3.36,131.45,131.42,6.8466]
[1765429082059,3.36,131.47,131.42,3.25]
[1765429082451,3.36,131.45,131.43,0.05849833]
[1765429083654,0.05340713,131.46,131.43,3.30849833]
[1765429084359,3.24340713,131.46,131.43,3.30849833]
[1765429084563,3.24340713,131.46,131.43,0.05849833]
[1765429085862,10.08850713,131.46,131.43,0.05849833]
[1765429086060,3.24340713,131.46,131.43,0.05849833]
[1765429086565,6.81010856,131.46,131.43,0.05849833]
[1765429086765,3.19,131.45,131.43,0.05849833]
[1765429087970,3.19,131.43,131.38,109.6839]
[1765429088465,3.19,131.42,131.39,6.8483]
[1765429088867,3.24840128,131.42,131.39,6.90150287]
[1765429089765,3.24840128,131.42,131.39,10.05150287]
[1765429090266,3.24840128,131.42,131.39,6.90150287]
[1765429091668,3.24840128,131.42,131.39,0.05320287]
[1765429093261,3.19,131.4,131.39,0.05320287]
[1765429093468,3.19,131.4,131.33,109.7278]
[1765429093469,3.19,131.4,131.33,3.15]
[1765429093678,3.19,131.38,131.33,3.15]
[1765429093968,3.19,131.36,131.3,109.7506]
[1765429094474,0.05509738,131.34,131.32,0.05026032]
[1765429094771,3.24509738,131.34,131.32,0.05026032]
[1765429096571,3.36,131.32,131.25,109.9398]